[Event "Susha Chess Rapid 2022"]
[Site "Shusha"]
[Date "2022.09.21"]
[Round "1.1"]
[White "Kasimdzhanov, Rustam"]
[Black "Mamedov, Rauf"]
[Result "1/2-1/2"]
[ECO "B31"]
[WhiteElo "2670"]
[BlackElo "2646"]
[Annotator "TA"]
[PlyCount "56"]
[EventDate "2022.09.21"]
[EventType "tourn"]
[EventCountry "AZE"]
[SourceTitle "playchess.com"]
[Source "ChessBase"]
[SourceQuality "1"]
[TimeControl "900+10"]

{[%evp 12,56,13,2,24,3,12,19,10,14,14,15,7,18,27,30,22,29,41,37,39,30,35,31,30,35,30,31,34,33,52,24,24,24,24,24,24,24,24,18,31,0,24,0,17,0,20]} 1. e4 {[%emt 0:00:03]} c5 {[%emt 0:00:01]} 2. Nf3 {[%emt 0:00:02]} Nc6 {[%emt 0:00:01]} 3. Bb5 {[%emt 0:00:01]} g6 {[%emt 0:00:06]} 4. O-O {[%emt 0:00:03]} Bg7 {[%emt 0:00:03]} 5. Bxc6 {[%emt 0:00:02]} dxc6 {[%emt 0:00:18]} (5... bxc6 6. Re1 Nh6 7. c3 O-O 8. h3 f5 9. e5 Nf7 10. d3 Ba6 11. c4 e6 12. Nc3 g5 13. Be3 g4 14. hxg4 fxg4 15. Nh2 g3 16. fxg3 Nxe5 17. Bxc5 {½-½ (31) Kasimdzhanov,R (2703)-Mamedov,R (2655) Almaty 2016}) 6. d3 {[%emt 0:00:13]} Nf6 {[%emt 0:00:10]} 7. h3 {[%emt 0:00:46]} Nd7 {[%emt 0:00:13] B31: Sicilian: 2...Nc6 3 Bb5 g6.} 8. Nbd2 {[%emt 0:00:26]} b6 {[%emt 0:00:21]} 9. a4 {[%emt 0:00:16]} a5 {[%emt 0:00:35]} 10. Nc4 {[%emt 0:00:41] [#]} Ba6 $146 {[%emt 0:00:03]} ({Predecessor:} 10... Qc7 11. Bg5 b5 12. Ne3 Bxb2 13. Rb1 Bg7 14. axb5 a4 15. bxc6 Qxc6 16. Nd5 e6 {0-1 (80) Ruch,E (2485)-Akdag,M (2567) ICCF email 2015}) 11. Qe2 {[%emt 0:00:23]} Qc7 {[%emt 0:00:15]} 12. Rb1 {[%emt 0:00:11]} Nf8 {[%emt 0:00:27]} 13. e5 {[%emt 0:00:16][%cal Oc4d6] [#] Hoping for Nd6+!} Ne6 {[%emt 0:00:16]} 14. Qe4 {[%emt 0:00:02]} Bxc4 {[%emt 0:01:15]} 15. dxc4 {[%emt 0:00:08]} O-O {[%emt 0:00:13]} 16. Be3 {[%emt 0:00:34]} Rad8 {[%emt 0:00:16]} 17. Rbd1 {[%emt 0:00:38]} Rxd1 {[%emt 0:00:24]} 18. Rxd1 {[%emt 0:00:03]} Rd8 {[%emt 0:00:01]} 19. Rxd8+ {[%emt 0:00:38]} Nxd8 {[%emt 0:00:01]} 20. Kf1 {[%emt 0:01:04]} Ne6 {[%emt 0:00:57]} 21. Ke2 {[%emt 0:00:05]} h5 {[%emt 0:01:16]} 22. g4 {[%emt 0:00:24]} hxg4 {[%emt 0:00:01]} 23. hxg4 {[%emt 0:00:01]} Kf8 {[%emt 0:00:05]} 24. b3 {[%emt 0:01:35]} Ke8 {[%emt 0:00:06]} 25. Kf1 {[%emt 0:01:11]} Kf8 {[%emt 0:00:12]} 26. Ke2 {[%emt 0:00:44]} Ke8 {[%emt 0:00:01]} 27. Kf1 {[%emt 0:01:16]} Kf8 {[%emt 0:00:01]} 28. Ke2 {[%emt 0:00:01]} Ke8 {Weighted Error Value: White=0.07 (flawless) /Black=0.03 (flawless)} 1/2-1/2

[Event "Susha Chess Rapid 2022"]
[Site "Shusha"]
[Date "2022.09.21"]
[Round "1.2"]
[White "Radjabov, Teimour"]
[Black "Maghsoodloo, Parham"]
[Result "1/2-1/2"]
[ECO "A04"]
[WhiteElo "2747"]
[BlackElo "2721"]
[Annotator "TA"]
[PlyCount "136"]
[EventDate "2022.09.21"]
[EventType "tourn"]
[EventCountry "AZE"]
[SourceTitle "playchess.com"]
[Source "ChessBase"]
[SourceQuality "1"]
[TimeControl "900+10"]

{[%evp 9,136,13,13,14,23,20,5,9,47,44,68,58,71,61,60,56,85,68,128,118,101,135,193,99,110,65,83,79,158,159,158,143,134,135,142,126,262,264,264,257,263,272,427,131,131,131,131,131,131,131,168,175,168,8,239,0,0,0,0,0,0,0,0,0,45,11,83,0,1,21,8,0,9,8,107,108,92,33,55,28,89,91,357,360,356,117,210,204,267,200,193,142,147,113,118,81,80,79,80,80,52,18,18,10,10,10,80,80,95,8,71,8,299,299,314,321,329,329,329,329,360,50,50,0,0,0,73,117,133]} 1. Nf3 {[%emt 0:00:01]} c5 {[%emt 0:00:04]} 2. c4 {[%emt 0:00:02]} Nc6 {[%emt 0:00:03]} 3. Nc3 {[%emt 0:00:01]} e5 {[%emt 0:00:02]} 4. e3 {[%emt 0:00:13]} Nf6 {[%emt 0:00:04]} 5. Be2 {[%emt 0:00:15]} d5 {[%emt 0:02:23]} 6. d4 {[%emt 0:00:01] A34: Symmetrical English: 2 Nc3, lines with ...d5.} cxd4 {[%emt 0:00:13] is the legacy move (6...exd4).} 7. exd4 {[%emt 0:00:01]} e4 {[%emt 0:01:55]} 8. Ne5 {[%emt 0:00:02] The position is equal.} Bb4 {[%emt 0:00:02]} 9. O-O {[%emt 0:00:43]} Bxc3 {[%emt 0:00:05]} 10. bxc3 {[%emt 0:00:04]} O-O {[%emt 0:00:05]} 11. Bg5 {[%emt 0:01:07]} h6 {[%emt 0:00:02]} 12. Bh4 {[%emt 0:00:11] [#]} Ne7 $146 {[%emt 0:01:15]} ({Predecessor:} 12... Be6 13. cxd5 Bxd5 14. Ng4 Be6 15. Nxf6+ gxf6 16. Qd2 Kg7 17. f3 e3 18. Qxe3 Re8 {1-0 (25) Illingworth,M (2524)-Dragomirescu,R (2362) Chess.com INT 2018}) 13. Qb3 {[%emt 0:05:02]} Be6 {[%emt 0:04:25]} (13... Nf5 $14 14. Bxf6 gxf6) 14. Qxb7 $16 {[%emt 0:00:51]} Rb8 {[%emt 0:00:02]} 15. Qxa7 {[%emt 0:03:21]} Rb2 {[%emt 0:00:04]} (15... Ra8 $16 {was called for.} 16. Qc5 Rc8) 16. Rfe1 {[%emt 0:01:02]} (16. Rae1 $18) 16... Nf5 {[%emt 0:00:11]} 17. Bxf6 {[%emt 0:01:46]} Qxf6 {[%emt 0:00:02]} 18. Rab1 {[%emt 0:00:01]} Rxb1 {[%emt 0:04:38]} (18... e3 $142) 19. Rxb1 {[%emt 0:00:01]} e3 {[%emt 0:00:01]} 20. f3 {[%emt 0:01:56]} Qh4 {[%emt 0:00:22]} 21. Rf1 {[%emt 0:00:02] Against Qf2+} dxc4 {[%emt 0:00:07]} 22. a4 {[%emt 0:00:16]} (22. Bxc4 $2 Bxc4 23. Nxc4 e2 $19) (22. Nxc4 Rc8 23. Qa6 Qd8 $16) 22... Ne7 {[%emt 0:00:52]} (22... Rc8 $16 {was necessary.} 23. a5 Qd8) 23. g3 $1 $18 {[%emt 0:00:14]} (23. Nxc4 Nd5 24. g3 Qg5 $11) (23. Bxc4 Bxc4 24. g3 (24. Nxc4 $2 e2 $19) 24... e2 $11) 23... Qf6 {[%emt 0:00:01]} 24. Nd7 {[%emt 0:00:44]} (24. Bxc4 Bxc4 25. Nxc4 e2 $11) 24... Bxd7 {[%emt 0:00:01]} 25. Qxd7 {[%emt 0:00:01]} Rb8 {[%emt 0:00:02]} (25... h5 $142 26. a5 (26. Bxc4 Rc8 $16) 26... h4) 26. Bxc4 $2 {[%emt 0:00:07]} (26. a5 $18 {has better winning chances.}) 26... Rc8 $16 {[%emt 0:01:39]} 27. Bd3 {[%emt 0:00:27] Black must now prevent a5.} g6 {[%emt 0:00:13]} 28. Re1 {[%emt 0:00:31]} Rxc3 {[%emt 0:00:33]} 29. Rxe3 {[%emt 0:00:01]} Nc6 {[%emt 0:00:03]} 30. Kf2 $1 {[%emt 0:00:33]} Nxd4 {[%emt 0:00:17] [#]} 31. Be4 $2 {[%emt 0:00:13]} (31. Bxg6 $1 $18 {[%mdl 512]} Rxe3 32. Kxe3) 31... Rc1 {[%emt 0:00:04] [#]} (31... Rc4 $11) 32. Rd3 $2 {[%emt 0:00:23]} ({White must play} 32. Bxg6 $1 $18 {[%mdl 512]} Nxf3 33. Bxf7+ (33. Rxf3 $2 Qb2+ 34. Ke3 Re1+ 35. Kd3 Rd1+ 36. Ke3 Rxd7 $19) 33... Qxf7 34. Qxf7+ Kxf7 35. Rxf3+ Ke6 36. Ra3) 32... Rc2+ $11 {[%emt 0:00:20]} 33. Kf1 {[%emt 0:00:01]} Ne6 {[%emt 0:00:16] Threatens to win with ...Qb2.} 34. Rd2 {[%emt 0:00:13]} Qa1+ {[%emt 0:00:09]} 35. Kg2 {[%emt 0:00:17]} Rc1 {[%emt 0:00:01]} 36. Qa7 {[%emt 0:00:10]} Qc3 {[%emt 0:00:19]} (36... Rh1 37. Qf2 $16) 37. Qf2 {[%emt 0:00:06] next Rc2 is good for White.} Qa5 {[%emt 0:00:13]} (37... Ng5 $1 $11 38. Rc2 Rxc2 39. Qxc2 Nxe4 40. Qxe4 Qd2+ 41. Kh3 Qd1) 38. Rc2 {[%emt 0:00:09]} ({Better is} 38. Qe3 $16) 38... Rd1 $1 {[%emt 0:00:02]} 39. Qe2 {[%emt 0:00:13]} Rd6 {[%emt 0:00:10]} 40. Qb5 {[%emt 0:00:07]} Qe1 {[%emt 0:00:04] ...Rd1 is the strong threat.} 41. Qb2 {[%emt 0:00:18]} Kh7 {[%emt 0:00:05]} (41... Rd1 $11 42. Rc8+ Nd8) 42. Re2 $16 {[%emt 0:00:04]} Qd1 {[%emt 0:00:06] [#]} 43. Qc2 {[%emt 0:00:09]} (43. a5 $1 $16) 43... Qa1 $14 {[%emt 0:00:10]} 44. Qa2 $36 {[%emt 0:00:01][%mdl 2048] White has some pressure.} (44. f4 $5 {[%cal Rf4f5]}) 44... Qd1 {[%emt 0:00:06]} (44... Rd1 $1 $11) 45. a5 $16 {[%emt 0:00:13] And now a6 would win.} Ra6 $2 {[%emt 0:00:25][%mdl 8192]} (45... Rd4 $16 {keeps fighting.}) 46. Rd2 $18 {[%emt 0:00:21]} Qe1 {[%emt 0:00:01]} 47. Rd7 {[%emt 0:00:12] Against Ra7} (47. Bb7 $18 Ra7 48. a6) 47... Kg8 {[%emt 0:00:04] [#]} (47... Rxa5 $16 48. Qc2 (48. Rxf7+ $2 Kg8 $19) (48. Qxe6 $2 Qe2+ 49. Kh3 Qf1+ 50. Kg4 Rg5+ 51. Kh4 Rh5+ 52. Kg4 Qh3+ 53. Kf4 Qxe6 $19) 48... Ng5 49. Bxg6+ Kg7) 48. Rd5 $1 {[%emt 0:00:09] Active counter play!} Qc3 {[%emt 0:00:11]} 49. Qc2 {[%emt 0:00:08]} Rc6 {[%emt 0:00:35]} 50. Qxc3 {[%emt 0:00:11]} (50. Rd2 $18 Qxc2 51. Rxc2) 50... Rxc3 {[%emt 0:00:01][%mdl 4096] Endgame KRB-KRN} 51. Rb5 {[%emt 0:00:11]} Ra3 {[%emt 0:00:04]} 52. Bd5 {[%emt 0:00:11] Against Ra2+} Nc7 {[%emt 0:00:03]} 53. Rc5 {[%emt 0:00:11]} Nxd5 {[%emt 0:00:07]} 54. Rxd5 $16 {[%emt 0:00:00] KR-KR} Ra2+ {[%emt 0:00:01]} 55. Kh3 {[%emt 0:00:03]} h5 $1 {[%emt 0:00:02]} 56. g4 {[%emt 0:00:05]} hxg4+ {[%emt 0:00:02]} 57. fxg4 {[%emt 0:00:00][%cal Bf3g4,Bg4h5,Bh5h6][%mdl 32]} Ra3+ {[%emt 0:00:19]} (57... f6 $1 $11) 58. Kg2 {[%emt 0:00:12]} f6 {[%emt 0:00:03]} 59. h4 {[%emt 0:00:21]} (59. Rc5 $16) 59... Kf7 {[%emt 0:00:04]} (59... Ra2+ $11 {keeps the balance.} 60. Kf3 Ra3+ 61. Ke4 Ra4+ 62. Kd3 Kf7) 60. h5 {[%emt 0:00:01]} ({White should play} 60. Rb5 $16) 60... gxh5 $2 {[%emt 0:00:02][%mdl 8192]} (60... Kg7 $11 {and Black is okay.}) 61. gxh5 $18 {[%emt 0:00:01]} Ke6 {[%emt 0:00:48]} 62. Rb5 {[%emt 0:00:01]} f5 {[%emt 0:00:01]} 63. h6 {[%emt 0:00:37] aiming for h7.} Kf6 {[%emt 0:00:38]} 64. Rb6+ {[%emt 0:00:01]} Kf7 {[%emt 0:00:01]} 65. a6 $2 {[%emt 0:00:06]} (65. Ra6 $18) 65... Kg8 $14 {[%emt 0:00:03]} 66. Rb8+ {[%emt 0:00:41]} (66. Kf2 $14) 66... Kh7 $11 {[%emt 0:00:02]} 67. Rb6 {[%emt 0:00:03]} f4 {[%emt 0:00:11]} (67... Kg8 $1 $11 {remains equal.}) 68. Kf2 {[%emt 0:00:04]} Kh8 {[%emt 0:00:04] Weighted Error Value: White=0.36/Black=0.39} 1/2-1/2

[Event "Susha Chess Rapid 2022"]
[Site "Shusha"]
[Date "2022.09.21"]
[Round "1.3"]
[White "Mamedyarov, Shakhriyar"]
[Black "Guseinov, Gadir"]
[Result "1-0"]
[ECO "A04"]
[WhiteElo "2757"]
[BlackElo "2661"]
[Annotator "TA"]
[PlyCount "66"]
[EventDate "2022.09.21"]
[EventType "tourn"]
[EventCountry "AZE"]
[SourceTitle "playchess.com"]
[Source "ChessBase"]
[SourceQuality "1"]
[TimeControl "900+10"]

{[%evp 10,66,0,9,9,-20,-12,0,-3,-2,0,0,-7,-15,4,10,16,12,16,14,15,9,14,0,0,0,24,0,60,59,53,0,72,74,172,171,168,194,254,109,115,56,110,119,102,107,125,87,73,0,327,316,1064,1038,1077,1085,2253,2182,29990]} 1. Nf3 {[%emt 0:00:03]} g6 {[%emt 0:00:11]} 2. e4 {[%emt 0:00:09]} c5 {[%emt 0:00:06]} 3. c3 {[%emt 0:00:10]} d5 {[%emt 0:00:08]} 4. e5 {[%emt 0:01:02]} Nc6 {[%emt 0:00:13]} 5. d4 {[%emt 0:00:15]} cxd4 {[%emt 0:00:12]} 6. cxd4 {[%emt 0:00:01]} Bg4 {[%emt 0:00:02] B22: Sicilian: 2 c3.} 7. Be2 {[%emt 0:02:33]} Nh6 {[%emt 0:04:21]} 8. Nc3 {[%emt 0:05:21][%cal Bb1c3,Bc3e2,Be2g3][%mdl 32]} Nf5 {[%emt 0:04:47] The position is equal.} 9. Ng5 $5 {[%emt 0:00:03][%mdl 4] An interesting side line.} Bxe2 {[%emt 0:00:06]} 10. Nxe2 {[%emt 0:00:03]} e6 {[%emt 0:01:02]} 11. O-O {[%emt 0:00:03] [#]} h6 $146 {[%emt 0:00:38]} ({Predecessor:} 11... Qb6 12. Nf3 Bg7 13. b3 O-O 14. g4 Nfe7 15. Nf4 a5 16. Be3 Rfc8 17. Nd3 Nb4 {0-1 (73) Mako,Z (1993)-Nagy,A (1967) Budapest 2011}) 12. Nf3 {[%emt 0:00:06]} Bg7 {[%emt 0:00:09]} 13. Ng3 {[%emt 0:00:10]} Nce7 {[%emt 0:01:53]} 14. b3 {[%emt 0:00:49]} O-O {[%emt 0:00:03]} 15. Qd2 {[%emt 0:00:29]} Rc8 {[%emt 0:00:18]} 16. Ba3 {[%emt 0:00:06]} Re8 {[%emt 0:00:06]} 17. Rfc1 {[%emt 0:00:05]} Qd7 {[%emt 0:00:09]} 18. Ne2 {[%emt 0:00:25]} Nc6 {[%emt 0:00:35]} ({Better is} 18... h5 $11) 19. g4 $14 {[%emt 0:00:25]} Nfe7 {[%emt 0:00:02]} 20. h4 {[%emt 0:00:21]} (20. h3 $14) 20... b6 {[%emt 0:00:36]} (20... f6 $1 $11 {remains equal.}) 21. Ng3 {[%emt 0:00:11]} Na5 {[%emt 0:00:07]} (21... Kh7 $16) 22. Rxc8 $18 {[%emt 0:00:12]} Rxc8 {[%emt 0:00:10]} 23. h5 $1 {[%emt 0:00:14]} Nac6 {[%emt 0:00:15]} (23... Qd8 $142 24. g5 hxg5) 24. Kg2 {[%emt 0:01:33]} (24. g5 $1 $18 {[%cal Rg5h6] is the precise move to win.}) 24... g5 $16 {[%emt 0:00:37] [#]} 25. Rh1 {[%emt 0:01:19]} ({White should play} 25. Nxg5 $1 $16 {[%mdl 512] Strongly threatening Nh3.} hxg5 26. h6 Bxe5 27. dxe5 (27. Qxg5+ Ng6 $16)) 25... f6 {[%emt 0:00:05]} (25... Kh8 $14) 26. exf6 {[%emt 0:00:08]} Bxf6 {[%emt 0:00:01]} 27. Re1 {[%emt 0:00:05]} Re8 {[%emt 0:00:13]} 28. Qd3 {[%emt 0:00:24]} Bg7 {[%emt 0:00:15]} 29. Bc1 {[%emt 0:00:51] White has more active pieces.} (29. Qe2 $16) 29... Nc8 $2 {[%emt 0:00:10][%mdl 8192] [#]} (29... Rf8 $11 {and Black is okay.}) 30. Bxg5 $1 $18 {[%emt 0:00:08]} hxg5 {[%emt 0:00:06]} (30... Qf7 31. Bd2 Rf8) 31. Nxg5 {[%emt 0:00:02] Black must now prevent Qh7+. White is clearly winning.} Kf8 {[%emt 0:01:21]} 32. Qg6 {[%emt 0:00:11][%cal Og3f5]} Bxd4 {[%emt 0:00:26] [#]} 33. Nf5 $1 {[%emt 0:00:10][%cal Re1e6][%mdl 512]} Nb8 {Weighted Error Value: White=0.19 (very precise) /Black=0.45} (33... Bb2 34. Nh7+) 1-0

[Event "Susha Chess Rapid 2022"]
[Site "Shusha"]
[Date "2022.09.21"]
[Round "1.4"]
[White "Yilmaz, Mustafa"]
[Black "Vidit, Santosh Gujrathi"]
[Result "0-1"]
[ECO "D26"]
[WhiteElo "2633"]
[BlackElo "2710"]
[Annotator "TA"]
[PlyCount "72"]
[EventDate "2022.09.21"]
[EventType "tourn"]
[EventCountry "AZE"]
[SourceTitle "playchess.com"]
[Source "ChessBase"]
[SourceQuality "1"]
[TimeControl "900+10"]

{[%evp 16,72,27,6,7,11,13,24,10,22,16,17,11,27,24,24,18,12,10,14,21,3,10,-280,-274,-284,-266,-527,-586,-572,-590,-566,-585,-555,-568,-527,-440,-429,-431,-431,-436,-426,-418,-441,-413,-465,-427,-465,-456,-537,-538,-727,-723,-703,-715,-707,-700,-672,-657]} 1. d4 {[%emt 0:00:03]} d5 {[%emt 0:00:02]} 2. c4 {[%emt 0:00:06]} dxc4 {[%emt 0:00:02]} 3. Nf3 {[%emt 0:00:02]} Nf6 {[%emt 0:00:01]} 4. e3 {[%emt 0:00:02]} e6 {[%emt 0:00:02]} 5. Bxc4 {[%emt 0:00:03]} c5 {[%emt 0:00:01]} 6. O-O {[%emt 0:00:04]} Nc6 {[%emt 0:00:02]} 7. Qe2 {[%emt 0:00:23]} a6 $1 {[%emt 0:00:02][%mdl 4] is recently more successful than 7...cxd4.} 8. Nc3 {[%emt 0:00:09]} b5 {[%emt 0:00:03]} 9. Bb3 {[%emt 0:00:02][%cal Od4d5]} (9. Ne5 Bb7 10. Bd3 (10. Nxc6 Bxc6 11. Bd3 b4 $15) 10... cxd4 11. Nxc6 Bxc6 12. exd4 Qxd4 $15) 9... Bb7 {[%emt 0:00:09] D28: Queen's Gambit Accepted: Classical main line: 7 Qe2 with early ...Nc6.} 10. d5 {[%emt 0:01:31]} exd5 {[%emt 0:00:37]} 11. e4 {[%emt 0:00:09][%cal Re4d5]} d4 {[%emt 0:00:02] White has an edge.} 12. e5 {[%emt 0:00:01]} Ng4 {[%emt 0:00:05] [#] Hoping for ...c4.} 13. Bg5 {[%emt 0:00:02][%mdl 1024] [#] White has compensation.} Be7 $5 $146 {[%emt 0:00:04][%cal Bf8e7,Be7g5,Bg5f6,Bf6d4][%mdl 8] White must now prevent ...c4. An interesting novelty.} ({Predecessor:} 13... Qc8 14. Nd5 c4 15. Bxc4 bxc4 16. Qxc4 h6 17. Bf4 Qd7 18. Rfd1 g5 19. Bg3 Bg7 20. Nxd4 Ngxe5 21. Bxe5 Bxe5 {½-½ (31) Mikhailov,G (2329)-Mayorov,B ICCF email 2016}) 14. Ne4 {[%emt 0:00:26]} d3 {[%emt 0:00:03]} (14... Ngxe5 $2 15. Nxc5 Qc7 16. Bxe7 Qxe7 17. Nxb7 $18) (14... Ncxe5 $2 15. Nxe5 (15. Nxc5 Bxf3 16. gxf3 Bxg5 $11) 15... Nxe5 16. Nxc5 $18) 15. Qe1 {[%emt 0:00:02]} d2 {[%emt 0:00:05]} 16. Qe2 {[%emt 0:00:14]} O-O {[%emt 0:00:10] Really sharp!} (16... Ngxe5 17. Nxc5 Nxf3+ 18. Qxf3 $16 (18. gxf3 $2 Nd4 $19)) (16... Ncxe5 $2 17. Nxe5 Nxe5 18. Nxc5 Bxg5 19. Qxe5+ Qe7 20. Qxe7+ Kxe7 21. Nxb7 $16) 17. Nxc5 {[%emt 0:03:51]} Bc8 {[%emt 0:00:40]} ({Don't play} 17... Bxg5 18. Nxb7 Qe7 19. e6 $16) 18. h4 {[%emt 0:05:26] Qe4 is the strong threat.} Bxg5 {[%emt 0:01:23]} 19. e6 $2 {[%emt 0:03:17][%mdl 8192] Now White is beyond hope.} (19. hxg5 $11 Qc7 20. Bd5 (20. Nxd2 Nd4 $17) (20. Qxd2 $2 Ncxe5 21. Nxe5 Qxe5 $19)) 19... Bf6 $19 {[%emt 0:05:15] Strongly threatening ...Nd4.} 20. Rad1 {[%emt 0:01:37]} Qc7 {[%emt 0:06:02] aiming for ...Nd4.} 21. Rxd2 {[%emt 0:00:44] [#]} (21. Qe4 Nd4 22. Qxg4 Nxb3 23. Nxb3 Bxe6 24. Qg3 Qxg3 25. fxg3) 21... Nd4 $1 {[%emt 0:00:21][%mdl 512]} 22. Rxd4 {[%emt 0:00:01]} Bxd4 {[%emt 0:00:01]} 23. exf7+ {[%emt 0:00:29]} Kh8 {[%emt 0:00:03]} 24. Ne6 {[%emt 0:00:04]} Bxe6 {[%emt 0:00:23]} 25. Bxe6 {[%emt 0:00:19]} Qf4 {[%emt 0:00:22]} 26. Kh1 {[%emt 0:00:02]} Ne5 {[%emt 0:00:41]} 27. Nxe5 {[%emt 0:00:02]} Qxe5 {[%emt 0:00:17]} 28. Qxe5 {[%emt 0:00:22]} Bxe5 {[%emt 0:00:02]} 29. b3 {[%emt 0:00:01]} Rad8 {[%emt 0:00:22]} 30. f4 {[%emt 0:00:06]} Bf6 {[%emt 0:00:03] Black is clearly winning.} 31. h5 {[%emt 0:00:15]} g6 {[%emt 0:00:08]} 32. h6 {[%emt 0:00:21]} Rd6 {[%emt 0:00:02]} 33. Re1 {[%emt 0:00:02]} Bh4 {[%emt 0:00:02]} 34. Re3 {[%emt 0:00:18]} Bf2 {[%emt 0:00:06]} 35. Re4 {[%emt 0:00:03]} Bg3 {[%emt 0:00:01] ( -> ...Rd1+)} 36. Bg4 {[%emt 0:00:03] Inhibits Rd1+.} Rf6 {[%emt 0:00:02] Weighted Error Value: White=0.47/Black=0.10 (very precise)} 0-1

[Event "Susha Chess Rapid 2022"]
[Site "Shusha"]
[Date "2022.09.21"]
[Round "1.5"]
[White "Durarbayli, Vasif"]
[Black "Wang, Hao"]
[Result "1-0"]
[ECO "B31"]
[WhiteElo "2628"]
[BlackElo "2722"]
[Annotator "TA"]
[PlyCount "73"]
[EventDate "2022.09.21"]
[EventType "tourn"]
[EventCountry "AZE"]
[SourceTitle "playchess.com"]
[Source "ChessBase"]
[SourceQuality "1"]
[TimeControl "900+10"]

{[%evp 15,73,8,10,10,14,10,19,18,21,16,18,25,26,2,68,17,23,-14,0,0,89,80,104,28,179,172,140,130,208,113,323,275,516,472,867,354,341,326,342,337,319,230,232,218,303,329,292,253,392,384,377,404,410,396,802,427,862,458,447,340]} 1. e4 {[%emt 0:00:01]} c5 {[%emt 0:00:02]} 2. Nf3 {[%emt 0:00:01]} Nc6 {[%emt 0:00:01]} 3. Bb5 {[%emt 0:00:01]} g6 {[%emt 0:00:02]} 4. O-O {[%emt 0:00:01]} Bg7 {[%emt 0:00:01]} 5. c3 {[%emt 0:00:01]} e5 {[%emt 0:00:03]} 6. d4 {[%emt 0:00:01]} cxd4 {[%emt 0:00:02]} 7. cxd4 {[%emt 0:00:02]} exd4 {[%emt 0:00:03]} 8. Bf4 {[%emt 0:00:04]} a6 {[%emt 0:00:01]} 9. Ba4 {[%emt 0:00:12][%cal Bb5a4,Ba4b3,Bb3d5][%mdl 32] B31: Sicilian: 2...Nc6 3 Bb5 g6.} Nge7 {[%emt 0:00:05] The main line 9...Nge7 scores better than 9...b5.} 10. Bd6 {[%emt 0:00:04][%mdl 1024] White has compensation.} b5 {[%emt 0:00:04]} 11. Bb3 {[%emt 0:00:08] The position is equal.} Bb7 {[%emt 0:00:02]} 12. Ng5 {[%emt 0:00:34]} O-O {[%emt 0:00:03]} 13. Qf3 {[%emt 0:00:01][%cal Rb3f7]} Qe8 {[%emt 0:00:01]} (13... h6 $2 14. Nxf7 Rxf7 15. Qxf7+ Kh7 16. a4 $18) 14. Qg3 {[%emt 0:00:45] [#]} a5 $146 {[%emt 0:00:45]} ({Black should play} 14... h6 $11 15. Nf3 d3) ({Predecessor:} 14... Na5 15. Nd2 h6 16. Ngf3 Rc8 17. Ne5 Nxb3 18. Nxb3 Bxe4 19. Nxd4 Nf5 20. Nxf5 Bxf5 {1-0 (29) Mchedlishvili,M (2593)-Ibarra Chami,L (2452) Chennai 2022}) 15. Nd2 $40 {[%emt 0:01:24][%mdl 128] White has some attack. White is much more active. The black rooks are badly placed.} ({White should try} 15. a4 $1 $14) 15... a4 $11 {[%emt 0:00:08]} 16. Bd5 {[%emt 0:00:02]} h6 {[%emt 0:03:16]} 17. Ngf3 {[%emt 0:00:29]} Kh8 {[%emt 0:00:56]} (17... Qd8 $11) 18. Rfe1 {[%emt 0:00:23]} d3 {[%emt 0:00:27]} 19. Qh4 {[%emt 0:01:36]} (19. Rab1 $16) 19... f6 $2 {[%emt 0:06:22]} (19... Qd8 $1 $11) 20. Qg3 $18 {[%emt 0:00:29]} g5 {[%emt 0:00:37]} 21. h4 {[%emt 0:00:17]} Kh7 {[%emt 0:00:49]} (21... Ra6 $16) 22. Re3 {[%emt 0:01:08]} (22. Rad1 $18) 22... Rh8 $2 {[%emt 0:00:23]} (22... a3 $16) 23. Rae1 {[%emt 0:02:00]} (23. Rxd3 Nxd5 24. exd5 (24. Rxd5 b4 $16) 24... Na5 $16) 23... Nc8 $2 {[%emt 0:01:00]} (23... Rf8 {was called for.} 24. Rxd3 Ne5) 24. e5 {[%emt 0:01:54] [#] And now exf6 would win.} Nxd6 {[%emt 0:00:09]} (24... f5 $142 25. hxg5 Nxd6 26. exd6 Qh5 27. gxh6 (27. Rxd3 Rae8 $16) 27... Bf6) 25. exd6 {[%emt 0:00:37]} (25. exf6 $142 Nf5 26. Qg4 (26. Rxe8 Nxg3 27. R8e7 Nxe7 $11)) 25... Qh5 {[%emt 0:01:30]} 26. Be4+ {[%emt 0:02:11]} (26. Rxd3 Rhe8 $14) 26... Kg8 {[%emt 0:00:01]} 27. Bxd3 {[%emt 0:00:38]} g4 {[%emt 0:00:08]} 28. Nh2 {[%emt 0:00:17]} f5 {[%emt 0:00:27]} 29. Qf4 {[%emt 0:00:43]} Rf8 {[%emt 0:00:15]} (29... Bxb2 30. Bxb5 (30. Bxf5 Rf8 $16) 30... Rf8 31. Bxa4) 30. Ndf1 {[%emt 0:01:27][%cal Bd2f1,Bf1g3,Bg3f5][%mdl 32]} ({Resist} 30. Bxb5 $6 Bf6 31. Nhf1 (31. Bxa4 Bxh4 32. Nhf1 Rh7 $18) 31... Qg6 32. Bxa4 (32. Qxa4 Bxh4 33. Bd3 Kg7 $18) 32... Bxh4 $18) 30... Qxh4 {[%emt 0:00:15] [#]} 31. Ng3 $1 {[%emt 0:00:32]} Qg5 {[%emt 0:00:46]} (31... Bd4 {might work better.} 32. Nxf5 (32. Re8 Qg5 $14) 32... Bxe3 33. Qxe3 Qg5) 32. Qxg5 {[%emt 0:00:01]} hxg5 {[%emt 0:00:01]} 33. Nxf5 {[%emt 0:00:01] aiming for Ne7+.} Bxb2 {[%emt 0:00:12]} 34. Nxg4 {[%emt 0:00:08] Nfh6+ is the strong threat. Pair of Knights!} b4 $2 {[%emt 0:00:41]} (34... Rb8 35. Bxb5 Kf7 36. Bxa4 Ba8) 35. Re7 {[%emt 0:00:30] White is clearly winning.} Nxe7 {[%emt 0:00:33]} (35... Rxf5 $142 36. Rxd7 Kf8) 36. dxe7 {[%emt 0:00:01]} Bd5 {[%emt 0:00:25]} 37. e8=Q {[%emt 0:00:40] Weighted Error Value: White=0.62/Black=0.50} ({Don't take} 37. exf8=R+ Kxf8 38. Ne5 Bxe5 $18) 1-0